Cogmind - Beta 10.2 @@@ ROGUE MODE // 2021.02.15 @ 00:29:19 Player: TheGreatBorealis Result: Self-destructed Performance ------------- Evolutions (1) 500 Regions Visited (2) 400 Robots Destroyed (7) 35 Value Destroyed (238) 238 Prototype IDs (0) 0 Alien Tech Used (0) 0 Bonus (0) 0 TOTAL SCORE: 1173 Bonus ------- None Cogmind --------- Core Integrity 387/400 Matter 300/300 Energy 182/265 System Corruption 0% Temperature Cool (0) Movement Walking (120) Location -9/Materials Parts ------- > --- POWER (1) -------- Improved Ion Engine > --- PROPULSION (4) --- Aluminum Leg Aluminum Leg Aluminum Leg Improved Aluminum Leg > --- UTILITY (2) ------ Medium Storage Unit Structural Scanner > --- WEAPON (2) ------- Medium Laser Assault Rifle > --- INVENTORY (8) ---- Ion Engine Light Treads Aluminum Leg Medium Storage Unit Advanced Targeting Computer Hardened Medium Armor Plating Medium Laser Grenade Launcher Peak State ------------ > --- POWER ------------ Improved Ion Engine > --- PROPULSION ------- Aluminum Leg Aluminum Leg Aluminum Leg Improved Aluminum Leg > --- UTILITY ---------- Medium Storage Unit Structural Scanner > --- WEAPON ----------- Medium Laser Assault Rifle > --- INVENTORY -------- Ion Engine Light Treads Aluminum Leg Medium Storage Unit Advanced Targeting Computer Hardened Medium Armor Plating Medium Laser Grenade Launcher [Rating: 12] Favorites ----------- Power Light Ion Engine Engine Light Ion Engine Propulsion Aluminum Leg Treads Light Treads Leg Aluminum Leg Utility Structural Scanner Device Structural Scanner Storage Small Storage Unit Weapon Medium Laser Energy Gun Medium Laser Ballistic Gun Assault Rifle Build | -11 -10 -9 ------- Run | Scr Mat Mat Slots Evolved 2 | . . 2 Power . | . . . Propulsion 2 | . . 2 Utility . | . . . Weapon . | . . . Parts Attached 9 | . 2 7 Power 1 | . . 1 Engine 1 | . . 1 Core . | . . . Reactor . | . . . Propulsion 6 | . . 6 Treads 2 | . . 2 Leg 4 | . . 4 Wheel . | . . . Hover . | . . . Flight . | . . . Utility 2 | . 2 . Device 1 | . 1 . Storage 1 | . 1 . Processor . | . . . Hackware . | . . . Protection . | . . . Artifact . | . . . Weapon . | . . . Energy Gun . | . . . Energy Cannon . | . . . Ballistic Gun . | . . . Ballistic Cannon . | . . . Launcher . | . . . Special Weapon . | . . . Impact Weapon . | . . . Slashing Weapon . | . . . Piercing Weapon . | . . . Special Melee Weapon . | . . . Unidentified Prototypes . | . . . Parts Lost . | . . . Power . | . . . Propulsion . | . . . Utility . | . . . Weapon . | . . . Highest Loss Streak . | . . . Average Slot Usage (%) 96 | . 93 100 Engine 12 | . 14 11 Treads 5 | . . 13 Leg 29 | . 28 30 Device 9 | . 7 11 Storage 12 | . 14 11 Energy Gun 12 | . 14 11 Ballistic Gun 12 | . 14 11 Naked Turns . | . . . Heaviest Build 20 | 11 16 20 Greatest Support 43 | 20 20 43 Greatest Overweight (x) . | . . . Average Overweight (x) . | . . . Largest Inventory Capacity 8 | . 8 8 Average Capacity 6 | . 6 8 Most Carried 8 | . 7 8 Average Carried 6 | . 6 7 Final Capacity 8 | 6 8 8 Final Carried 8 | 6 7 8 Class Distribution -------------------- 100% | Mutant Dominant Class ---------------- Mutant | -10/Materials Mutant | -9/Materials Resources | -11 -10 -9 ----------- Run | Scr Mat Mat Matter Collected 347 | 193 32 122 Remotely . | . . . Salvage Created 285 | . 52 233 Parts 16 | . 5 11 Haulers Intercepted . | . . . Recyclers Shooed . | . . . Parts Field Recycled . | . . . Retrieved Matter . | . . . Parts Self-Destructed . | . . . Prevented . | . . . Kills | -11 -10 -9 ------- Run | Scr Mat Mat Combat Hostiles Destroyed 7 | . 2 5 Guns 7 | . 2 5 Classes Destroyed 3 | . 2 1 Swarmer 1 | . 1 . Grunt 5 | . 1 4 Sentry 1 | . . 1 Best Kill Streak 3 | . 1 3 Combat Bots Only 3 | . 1 3 Max Kills in Single Turn 1 | . 1 1 Gunslinging . | . . . Exploded . | . . . Melee . | . . . Uniques/NPCs Destroyed . | . . . Combat | -11 -10 -9 -------- Run | Scr Mat Mat Damage Taken 312 | . 48 264 Core 28 | . 15 13 Absorbed by Shields . | . . . Core Remaining (%) 97 | 100 94 . Volleys Fired 19 | . 5 14 Largest 2 | . 2 2 Hottest 70 | . 70 70 Shots Fired 38 | . 10 28 Gun 38 | . 10 28 Cannon . | . . . Launcher . | . . . Special . | . . . Kinetic 19 | . 5 14 Thermal 19 | . 5 14 Explosive . | . . . Electromagnetic . | . . . Robot Hit Streak 9 | . 2 9 Robot Miss Streak 2 | . 2 1 Penetration Max . | . . . Secondary Targets . | . . . Shots Hit Robots 28 | . 4 24 Core Hits 14 | . 3 11 Critical Hits . | . . . Critical Kills . | . . . Critical Parts Destroyed . | . . . Melee Attacks . | . . . Impact . | . . . Slashing . | . . . Piercing . | . . . Sneak Attacks . | . . . Combat Hostiles . | . . . Follow-up Attacks . | . . . Damage Inflicted 323 | . 50 273 Guns 323 | . 50 273 Cannons . | . . . Explosions . | . . . Melee . | . . . Ramming . | . . . Kinetic 134 | . 12 122 Thermal 189 | . 38 151 Explosive . | . . . Electromagnetic . | . . . Impact . | . . . Slashing . | . . . Piercing . | . . . Highest Corruption . | . . . Average Corruption . | . . . Corruption Purged . | . . . Overload Shots . | . . . Overflow Damage . | . . . Projectiles . | . . . Explosions . | . . . Melee . | . . . Knockbacks . | . . . Impact . | . . . Kinetic . | . . . Secondary . | . . . Self-Inflicted Damage . | . . . Shots . | . . . Rammed . | . . . Targets Rammed . | . . . Kicked . | . . . Crushed . | . . . Highest Temperature 114 | . 39 114 Average Temperature 54 | . 18 68 Received Heat Transfer 138 | . 18 120 Siege Activations . | . . . Robots Corrupted . | . . . Combat Hostiles . | . . . Parts Fried . | . . . Impact Corruptions . | . . . Robots Melted . | . . . Combat Hostiles . | . . . Parts Melted 1 | . . 1 Heat Transferred 555 | . 111 444 Parts Sabotaged . | . . . Parts Stolen . | . . . Parts Stripped . | . . . Power Chain Reactions . | . . . Missiles Intercepted . | . . . Alert | -11 -10 -9 ------- Run | Scr Mat Mat Peak Influence 160 | . 96 160 Initial 40 | . . 40 Average 51 | . 31 79 Maximum Alert Level . | . . . Low Security (%) 100 | . 100 100 Level 1 . | . . . Level 2 . | . . . Level 3 . | . . . Level 4 . | . . . Level 5 . | . . . High Security . | . . . Max Security . | . . . Squads Dispatched 1 | . 1 . Investigation 1 | . 1 . Extermination . | . . . Reinforcement . | . . . Assault . | . . . Garrison . | . . . Intercept . | . . . Construction Impeded . | . . . Haulers Reinforced . | . . . Stealth | -11 -10 -9 --------- Run | Scr Mat Mat Distress Signals 2 | . 2 . Communications Jammed . | . . . Distress Signals . | . . . Times Spotted 12 | . 7 5 Peak Tracking Total 5 | . 5 4 Tactical Retreats 1 | . 1 . Traps | -11 -10 -9 ------- Run | Scr Mat Mat Traps Triggered 1 | . 1 . Indirectly . | . . . Trap Hack Attempts . | . . . Triggered . | . . . Disarmed . | . . . Reprogrammed . | . . . Reused . | . . . Traps Extracted . | . . . Installed . | . . . Triggered . | . . . Machines | -11 -10 -9 ---------- Run | Scr Mat Mat Machines Disabled . | . . . Max in Single Turn . | . . . Machines Sabotaged . | . . . Garrisons Compromised . | . . . Overloaded Fab Kills . | . . . Fab Network Shutdowns . | . . . Hacking | -11 -10 -9 --------- Run | Scr Mat Mat Machines Accessed 1 | . 1 . Terminals 1 | . 1 . Fabricators . | . . . Repair Stations . | . . . Recycling Units . | . . . Scanalyzers . | . . . Garrison Access . | . . . Total Hacks 1 | . 1 . Successful 1 | . 1 . Failed . | . . . Catastrophic . | . . . Database Lockouts . | . . . Manual 1 | . 1 . Terminals 1 | . 1 . Fabricators . | . . . Repair Stations . | . . . Recycling Units . | . . . Scanalyzers . | . . . Garrison Access . | . . . Terminal Hacks . | . . . Fabricator Hacks . | . . . Repair Station Hacks . | . . . Recycling Unit Hacks . | . . . Scanalyzer . | . . . Garrison Access Hacks . | . . . Unauthorized Hacks 1 | . 1 . Terminals 1 | . 1 . Operators 1 | . 1 . Fabricators . | . . . Repair Stations . | . . . Recycling Units . | . . . Scanalyzers . | . . . Garrison Access . | . . . Data Cores Recovered . | . . . Used . | . . . Hacking Detections . | . . . Full Trace Events . | . . . Feedback Events . | . . . Feedback Blocked . | . . . Robot Schematics Acquired . | . . . Robots Built . | . . . Matter . | . . . Time . | . . . Total Robot Build Rating . | . . . Part Schematics Acquired . | . . . Parts Built . | . . . Matter . | . . . Time . | . . . Total Part Build Rating . | . . . Parts Repaired . | . . . Time . | . . . Parts Recycled . | . . . Recycled Matter . | . . . Retrieved Matter . | . . . Retrieved Components . | . . . Parts Scanalyzed . | . . . Part Schematics Acquired . | . . . Parts Damaged . | . . . Bothacking | -11 -10 -9 ------------ Run | Scr Mat Mat Used RIF Installer . | . . . Robots Hacked . | . . . Non-combat . | . . . Combat . | . . . Robot Hacks Applied . | . . . Relay Couplers Released . | . . . Robots Rewired . | . . . Allies Hacked . | . . . Hacks Repelled . | . . . Allies | -11 -10 -9 -------- Run | Scr Mat Mat Total Allies . | . . . Largest Group . | . . . Highest-Rated Group . | . . . Highest-Rated Ally . | . . . Total Orders . | . . . Ally Attacks . | . . . Total Damage . | . . . Kills . | . . . Allies Corrupted . | . . . Allies Melted . | . . . Intel | -11 -10 -9 ------- Run | Scr Mat Mat Robot Analysis Total . | . . . Derelict Logs Recovered . | . . . Drone Launches . | . . . Drone Recoveries . | . . . Exploration | -11 -10 -9 ------------- Run | Scr Mat Mat Turns Passed 348 | . 204 144 Spaces Moved 211 | 1 147 63 Core . | . . . Treads . | . . . Legs 211 | 1 147 63 Wheels . | . . . Hover . | . . . Flight . | . . . Fastest Speed 120 | 120 120 120 Average Speed 120 | 120 120 120 Slowest Speed 120 | 120 120 120 Overloaded Moves . | . . . Propulsion Burnouts . | . . . Robots Hopped . | . . . Cave-ins Triggered . | . . . Exploration Rate (%) 13 | 2 29 8 Regions Visited 2 Branch Regions . Pre-discovered Areas . | . . . Known Exits Taken . | . . . Unknown Exits Taken 2 | 1 1 . Scrap Searched . | . . . Spaces Dug . | . . . Terrain Destroyed . | . . . Melee . | . . . Projectile . | . . . AOE . | . . . Terrain Rammed . | . . . Walls Destroyed . | . . . Machines Disabled . | . . . Actions | -11 -10 -9 --------- Run | Scr Mat Mat Total 268 | . 165 103 Wait 20 | . 8 12 Move 209 | . 146 63 Hop . | . . . Pick Up 5 | . 2 3 Fast Attach 2 | . 1 1 Attach 2 | . . 2 Detach . | . . . Swap 5 | . 1 4 Drop 6 | . 2 4 Fire 19 | . 5 14 Melee . | . . . Ram . | . . . Kick . | . . . Crush . | . . . Escape Stasis . | . . . Rewire . | . . . Trap . | . . . Miscellaneous . | . . . Route ------- -11/Scrapyard -10/Materials -9/Materials History --------- Turn | Location | Event 1 | -11/Scrapyard | Discovered new exit (range 0) 1 | -11/Scrapyard | Entered Materials 177 | -10/Materials | Discovered new exit (range 14) 205 | -10/Materials | Entered another Materials area 205 | -9/Materials | Evolved 2 slots: Propulsion x2 307 | -9/Materials | Build established: Mutant 349 | -9/Materials | Self-destructed Last Messages --------------- 00293_ K-01 Serf collects debris. 00301_ R-06 Scavenger collects Ion Engine. 00302_ K-01 Serf collects debris. 00311_ Aluminum Leg melted. 00311_ G-47 Trooper destroyed. 00312_ K-01 Serf collects debris. 00323_ Y-45 Defender destroyed. 00324_ K-01 Serf collects debris. 00326_ Dropped Aluminum Leg. 00327_ K-01 Serf collects debris. 00328_ Dropped Lgt. Treads. 00328_ Acquired Aluminum Leg. 00329_ K-01 Serf collects debris. 00331_ Dropped Lgt. Ion Engine. 00332_ K-01 Serf collects debris. 00335_ Acquired 45 matter. 00335_ K-01 Serf collects debris. 00340_ Acquired 31 matter. 00345_ R-06 Scavenger collects Lgt. Nuclear Core. 00348_ R-06 Scavenger collects Heat Sink. Map ----- +----------------------------------------------------+ | ?????????????????????????????????????????????????? | | ?????????????????????????????????????????????????? | | ?????????????????????????????????????????????????? | | ?????????????????????????????????????????????????? | | ?????????????????????????????????????????????????? | | ?????????????????????????????????????????????????? | | ?????????????????????????????????????????????????? | | ?????????????????????????????????????????????????? | | ?????????????????????????????????????????????????? | | ?????????????????????????????????????????????????? | | ?????????????????????????????????????????????????? | | ?????????????????????????????????????????????????? | | ?????????????????????????????????????????????????? | | ?????????????????????????????????????????????????? | | ?????????????????????????????????????????????????? | | ?????????????????????????????????????????????????? | | ?????????????????????????????????????????????????? | | ??????????????????????????????????? ?????????????? | | ????????????????????????????????? ?????????????? | | ????????????????????????????????" ??????????????? | | ????????????# ????????###+###?? ???????????????? | | ??????????? ####### ###+####### ?????????? | | ??????????? ?????????? | | ???????????? Y T ??????????? | | ????????????????? ???????????????? | | ??????????????????????# @ #????????????????????? | | ??????????????????????## ##????????????????????? | | ???????????????#########r% #?????????????????????? | | ???????????????# [ #k #?????????????????????? | | ???????????????# ![+%% #########?????????????? | | ???????????????# =* #% ##!![[!!#?????????????? | | ????????????#+########## ##! [[ !#?????????????? | | ????????????# """ """ ## ## #?????????????? | | ????????????# """ """ # u# ####??????????? | | ????????????# """ """ # #??????????? | | ????????????# + #??????????? | | ????????????# # ##########?? | | ????????????# # ###+### | | ????????????# = ###+#### # | | ????????????# # !?# # ###########? | | ????????????########### ## # #??????????? | | ??????????????????????# ## #####??????????? | | ??????????????????????# """## #??????????????? | | ??????????????????????# """## #??????????????? | | ??????????????????????# """## #??????????????? | | ??????????????????????# ## #??????????????? | | ??????????????????????# """?# #??????????????? | | ??????????????????????# ????######??????????????? | | ??????????????????????# ????????????????????????? | | ??????????????????????? ????????????????????????? | +----------------------------------------------------+ Best States ------------- Heat Dissipation 28 Energy Generation 12 Energy Capacity 265 Matter Stores 300 Matter Capacity 300 Sight Range 16 Terrain Scan Density 10 Evasion (%) 40 Item Schematics ----------------- None Robot Schematics ------------------ None Fabricated ------------ Nothing Alien Tech Used ----------------- None Achievements -------------- None Challenges ------------ None Game ------ Seed ReactiveCoreConverter Manual? 0 Play Time 00:05:23 Cumulative 80.5 hours Start 2021.02.11 @ 21:42:36 End 2021.02.15 @ 00:29:19 Sessions 5 Manual Loads 0 Difficulty Rogue Special Mode None Game No. 153 Rogue 153 Adventurer 0 Explorer 0 Win Type - Total 0 Types 0/0/0/0/0/0/0/0/0 Lore% 52 Gallery% 57 Achievement% 42 Wizard Run 0 Options --------- ASCII 0 Keyboard 0 Movement Numpad Keybinds 0 Fullscreen 2 Font 18/Terminus Map View 76x50 Tactical HUD 1 Map Filters NONE Filters NONE Steam 1 RUN: ee98605c-7850-4d22-bfd1-87f7e21708a9